Cogmind - Beta 16.1 @@@ ROGUE MODE // 2026.05.01 @ 16:47:06 Player: kareds Result: Destroyed by G-47 Trooper with Particle Gun Performance ------------- Evolutions (2) 1000 Regions Visited (7) 1400 Robots Destroyed (40) 200 Value Destroyed (1041) 1041 Prototype IDs (25) 500 Alien Tech Used (0) 0 Bonus (300) 300 TOTAL SCORE: 4441 Bonus ------- Aligned with FarCom 300 Cogmind --------- Core Integrity 0/550 Matter 160/300 Energy 32/100 System Corruption 15% Temperature Cool (9) Movement Core (50) Location -8/Materials Parts ------- > --- POWER (1) -------- (None) > --- PROPULSION (4) --- (None) > --- UTILITY (4) ------ (None) > --- WEAPON (2) ------- Field Laser > --- INVENTORY (5) ---- Improved Signal Interpreter Improved Terrain Scanner Hardlight Generator Trap Extractor (0/4) Peak State ------------ > --- POWER ------------ Light Nuclear Core > --- PROPULSION ------- Armored Wheel Armored Wheel Armored Wheel Armored Wheel > --- UTILITY ---------- Improved Heat Sink Small Storage Unit Improved Sensor Array Hardlight Generator > --- WEAPON ----------- Particle Gun Latent Energy Streamer > --- INVENTORY -------- Light Ion Engine Improved Signal Interpreter Improved Terrain Scanner Improved Terrain Scanner Trap Extractor Plasma Cutter [Rating: 34] Favorites ----------- Power Ion Engine Engine Ion Engine Power Core Light Nuclear Core Propulsion Armored Wheel Treads Light Treads Leg Aluminum Leg Wheel Armored Wheel Utility Small Storage Unit Device Seismic Detector Storage Small Storage Unit Protection Core Shielding Weapon Light Assault Rifle Energy Gun EM Pulse Gun Energy Cannon Latent Energy Streamer Ballistic Gun Light Assault Rifle Special Weapon Mining Laser Build | -11 -10 -10 -9 -9 -9 -8 -8 ------- Run | Yrd Mat Min Mat Min Exi Min Mat Slots Evolved 4 | . . . 2 . . . 2 Power . | . . . . . . . . Propulsion 2 | . . . 1 . . . 1 Utility 2 | . . . 1 . . . 1 Weapon . | . . . . . . . . Parts Attached 47 | 7 4 4 8 5 1 4 14 Power 7 | 1 1 . 1 2 . 1 1 Engine 6 | 1 1 . 1 2 . . 1 Core 1 | . . . . . . 1 . Reactor . | . . . . . . . . Propulsion 12 | 2 2 . 4 1 . 1 2 Treads 3 | 2 . . . . . . 1 Leg 4 | . 2 . 1 . . 1 . Wheel 5 | . . . 3 1 . . 1 Hover . | . . . . . . . . Flight . | . . . . . . . . Utility 14 | 2 . 1 2 2 . 1 6 Device 7 | 1 . 1 . 1 . 1 3 Storage 4 | 1 . . 1 . . . 2 Processor . | . . . . . . . . Hackware . | . . . . . . . . Protection 3 | . . . 1 1 . . 1 Artifact . | . . . . . . . . Weapon 14 | 2 1 3 1 . 1 1 5 Energy Gun 5 | 1 . . . . . 1 3 Energy Cannon 2 | . . . 1 . 1 . . Ballistic Gun 5 | 1 1 2 . . . . 1 Ballistic Cannon . | . . . . . . . . Launcher . | . . . . . . . . Special Weapon 2 | . . 1 . . . . 1 Impact Weapon . | . . . . . . . . Slashing Weapon . | . . . . . . . . Piercing Weapon . | . . . . . . . . Special Melee Weapon . | . . . . . . . . Unidentified Prototypes 2 | . . . 1 . . . 1 Parts Lost 18 | . 2 1 . 5 . 1 9 Power 5 | . . . . 2 . 1 2 Propulsion 4 | . 1 . . . . . 3 Utility 4 | . . 1 . 1 . . 2 Weapon 5 | . 1 . . 2 . . 2 Highest Loss Streak 4 | . 1 1 . 4 . 1 4 To Critical Strikes . | . . . . . . . . Average Backups 6 | 2 6 6 6 6 7 6 6 Power . | . 1 1 1 . 1 1 . Propulsion 1 | 1 2 2 . 1 2 1 . Utility 3 | . 1 2 2 3 4 3 4 Weapon . | . 1 1 1 . . . . Tool/Special . | . . . . . . . . Unused Backups 9 | . 1 . 2 . . . 6 Power 2 | . . . 1 . . . 1 Propulsion 2 | . 1 . 1 . . . . Utility 5 | . . . . . . . 5 Weapon . | . . . . . . . . Tool/Special . | . . . . . . . . Average Slot Usage (%) 91 | . 98 94 99 87 93 98 82 Engine 9 | . 14 14 11 8 11 2 4 Core 1 | . . . . . . 7 2 Treads 5 | . 24 . . . . . 1 Leg 5 | . 2 28 4 . . . . Wheel 19 | . . . 28 33 33 32 26 Device 13 | . 14 10 11 11 11 17 17 Storage 11 | . 14 14 11 11 11 11 9 Protection 4 | . . . 10 8 11 3 5 Energy Gun 5 | . 13 . . . . 6 6 Energy Cannon 6 | . . . 6 11 16 15 6 Ballistic Gun 8 | . 14 24 14 1 . . 2 Peak Build Rating 34 | 7 8 7 15 15 24 28 34 Average Rating 16 | 5 7 6 13 13 18 26 26 On Entrance 12 | . 7 6 7 15 14 24 27 Avg Prop Armor Cover (%) 7 | . . . . . . 12 7 Naked Turns 34 | . . . . . . . 34 Heaviest Build 41 | 15 15 13 32 31 31 28 41 Greatest Support 48 | 40 40 20 36 36 36 36 48 Greatest Overweight (x) 3 | . . . 1 . . 2 3 Average Overweight (x) . | . . . . . . 1 . Largest Inventory Capacity 15 | 8 8 8 15 15 15 8 15 Average Capacity 9 | 7 8 8 11 15 11 8 9 Most Carried 9 | 5 8 8 7 8 9 7 8 Average Carried 6 | 2 6 6 6 6 7 6 6 Final Capacity 15 | 8 8 8 15 15 8 8 5 Final Carried 8 | 5 7 7 7 8 7 6 4 Class Distribution -------------------- 64% | Mutant 15% | Scavenger-Skirmisher 12% | Scavenger-Mutant 8% | Skirmisher Dominant Class ---------------- Mutant | -10/Materials Scavenger-Mutant | -10/Mines Mutant | -9/Materials Mutant | -9/Mines Mutant | -9/Exiles Scavenger-Mutant | -8/Mines Scavenger-Skirmisher | -8/Materials Resources | -11 -10 -10 -9 -9 -9 -8 -8 ----------- Run | Yrd Mat Min Mat Min Exi Min Mat Matter Collected 828 | 138 202 36 16 140 . 174 122 Remotely . | . . . . . . . . Salvage Created 1550 | 57 277 61 117 92 . 317 629 Parts 93 | 9 18 7 10 . . 15 34 Haulers Intercepted 2 | . . . . . . . 2 Recyclers Shooed 2 | . . 1 . . . . 1 Parts Field Recycled . | . . . . . . . . Retrieved Matter . | . . . . . . . . Parts Self-Destructed . | . . . . . . . . Prevented . | . . . . . . . . Parts Restored . | . . . . . . . . Kills | -11 -10 -10 -9 -9 -9 -8 -8 ------- Run | Yrd Mat Min Mat Min Exi Min Mat Combat Hostiles Destroyed 37 | . 8 3 4 7 . 6 9 Guns 19 | . 8 3 3 . . 3 2 Cannons 11 | . . . 1 7 . 3 . AOE 7 | . . . . . . . 7 Classes Destroyed 9 | 1 2 . 1 1 . 1 3 Tunneler 4 | 3 . 1 . . . . . Hauler 2 | . . . . . . . 2 Recycler 1 | . . . . . . . 1 Watcher 3 | . . . 1 . . . 2 Swarmer 12 | . 3 3 3 . . . 3 Grunt 13 | . 5 . 1 . . 4 3 Duelist 3 | . . . . . . 2 1 Sentry 2 | . . . . . . . 2 Assembled 7 | . . . . 7 . . . Best Kill Streak 6 | 2 3 2 4 4 . 3 6 Combat Bots Only 4 | . 3 2 3 4 . 3 4 Max Kills in Single Turn 4 | 1 1 2 1 1 . 1 4 Gunslinging 1 | . . 1 . . . . . Exploded 3 | . . . . . . . 3 Melee . | . . . . . . . . Uniques/NPCs Destroyed . | . . . . . . . . Combat | -11 -10 -10 -9 -9 -9 -8 -8 -------- Run | Yrd Mat Min Mat Min Exi Min Mat Hostile Shots Fired 342 | . 83 22 32 45 . 31 129 Missed 110 | . 26 10 12 9 . 11 42 Hits 232 | . 57 12 20 36 . 20 87 Melee 5 | . . . . 1 . 3 1 Projectile 227 | . 57 12 20 35 . 17 86 Critical Strikes 12 | . . . . . . 4 8 Damage Taken 3372 | 18 539 94 253 659 . 351 1458 Core 880 | . 88 8 34 81 . 114 555 Absorbed by Shields . | . . . . . . . . Redirected to Shielding 81 | . . . 24 23 . . 34 Core Remaining (%) 67 | 100 . 61 . . . 42 . Volleys Fired 158 | 6 29 16 14 34 . 24 35 Largest 2 | 2 2 2 2 2 . 1 2 Hottest 130 | 60 60 40 88 100 . 68 130 Shots Fired 235 | 12 58 31 28 36 . 24 46 Gun 163 | 12 58 31 14 2 . 8 38 Cannon 57 | . . . 14 24 . 16 3 Launcher . | . . . . . . . . Special 15 | . . . . 10 . . 5 Kinetic 96 | 6 29 31 14 2 . . 14 Thermal 99 | . . . 14 34 . 22 29 Explosive . | . . . . . . . . Electromagnetic 40 | 6 29 . . . . 2 3 Robot Hit Streak 14 | 3 5 3 4 5 . 11 14 Robot Miss Streak 5 | 2 5 3 3 2 . 2 4 Penetration Max . | . . . . . . . . Secondary Targets 2 | . 1 1 . . . . . Max Gunslinging Chain 1 | . 1 1 . . . . . Shots Hit Robots 120 | 7 30 13 14 12 . 19 25 Core Hits 72 | 3 15 6 7 7 . 15 19 Critical Kills . | . . . . . . . . Critical Parts Destroyed . | . . . . . . . . Critical Strikes 2 | . . . . . . 1 1 Burn 2 | . . . . . . 1 1 Melee Attacks . | . . . . . . . . Impact . | . . . . . . . . Slashing . | . . . . . . . . Piercing . | . . . . . . . . Sneak Attacks . | . . . . . . . . Combat Hostiles . | . . . . . . . . Follow-up Attacks . | . . . . . . . . Damage Inflicted 3038 | 163 347 165 166 267 . 462 1468 Guns 1178 | 93 347 138 86 . . 135 379 Cannons 573 | . . . 80 267 . 212 14 Explosions 1214 | 70 . . . . . 115 1029 Melee . | . . . . . . . . Ramming 62 | . . 27 . . . . 35 Kinetic 557 | 27 112 138 86 . . . 194 Thermal 981 | 70 . . 80 267 . 339 225 Explosive . | . . . . . . . . Electromagnetic 1438 | 66 235 . . . . 123 1014 Impact . | . . . . . . . . Slashing . | . . . . . . . . Piercing . | . . . . . . . . Highest Corruption 15 | . . . . 3 3 5 15 Average Corruption 4 | . . . . 3 3 4 5 Corruption Purged . | . . . . . . . . Corruption Blocked . | . . . . . . . . Effects 24 | . . . . 1 4 2 17 Message Errors 6 | . . . . 1 . . 5 Matter Fused 5 | . . . . . 3 . 2 Heat Flow Errors 1 | . . . . . . . 1 Energy Discharges 3 | . . . . . 1 . 2 Parts Fused 1 | . . . . . . . 1 Data Loss (minor) 4 | . . . . . . 1 3 Data Loss (major) 2 | . . . . . . . 2 Alerts 1 | . . . . . . 1 . Misdirections 1 | . . . . . . . 1 Overload Shots . | . . . . . . . . Overflow Damage 50 | . . . . . . . 50 Projectiles . | . . . . . . . . Explosions 50 | . . . . . . . 50 Melee . | . . . . . . . . Knockbacks . | . . . . . . . . Impact . | . . . . . . . . Kinetic . | . . . . . . . . Secondary . | . . . . . . . . Self-Inflicted Damage 236 | 18 . . . . . . 218 Shots 4 | 1 . . . . . . 3 Rammed 5 | . . . . . . . 5 Targets Rammed 12 | . . 7 . . . . 5 Kicked 7 | . . 7 . . . . . Crushed . | . . . . . . . . Highest Temperature 416 | 12 141 . 160 176 . 416 152 Average Temperature 81 | 12 53 . 73 34 . 237 29 Received Heat Transfer 993 | . 141 . 60 . . 225 567 Effects 2 | . . . . . . 2 . Shutdowns 1 | . . . . . . 1 . Energy Bleed 1 | . . . . . . 1 . Siege Activations . | . . . . . . . . Martial Activations . | . . . . . . . . Shielding Activations . | . . . . . . . . Robots Disrupted . | . . . . . . . . Combat Hostiles . | . . . . . . . . Robots Corrupted 1 | . . . . . . . 1 Combat Hostiles . | . . . . . . . . Parts Fried 4 | . . . . . . 1 3 Impact Corruptions . | . . . . . . . . Robots Melted . | . . . . . . . . Combat Hostiles . | . . . . . . . . Parts Melted 4 | . . . 2 . . 2 . Heat Transferred 2037 | 100 . . 148 481 . 740 568 Parts Sabotaged . | . . . . . . . . Parts Stolen . | . . . . . . . . Parts Stripped . | . . . . . . . . Power Chain Reactions 3 | 1 . . . . . . 2 Latent Energy Used 689 | . . . . . . 89 600 LE Corruption 11 | . . . . . . 2 9 Alert | -11 -10 -10 -9 -9 -9 -8 -8 ------- Run | Yrd Mat Min Mat Min Exi Min Mat Maximum Alert Level 1 | . . . . . . . 1 Low Security (%) 99 | 100 100 100 100 100 . 100 99 Level 1 . | . . . . . . . . Level 2 . | . . . . . . . . Level 3 . | . . . . . . . . Level 4 . | . . . . . . . . Level 5 . | . . . . . . . . High Security . | . . . . . . . . Max Security . | . . . . . . . . Peak Influence 213 | 5 85 50 95 36 . 120 213 Initial 36 | . 3 19 . 36 . . 35 Average 39 | . 39 10 39 6 . 66 66 Influence Increases 1168 | 15 227 75 137 7 . 170 537 Destroy 0b10 Robot/C 600 | . 160 60 80 . . 120 180 Destroy 0b10 Robot/NC 50 | 15 . 5 5 . . . 25 Destroy Leader 120 | . 30 10 12 . . 20 48 Successful Hack 17 | . 7 . 10 . . . . Disable Machine 60 | . 30 . . . . . 30 Destroy Structure 66 | . . . . 7 . . 59 Lose Combat Pursuer 255 | . . . 30 . . 30 195 Influence Decreases 958 | 10 181 126 42 102 . 80 417 Entered New Map 148 | . 2 32 . 59 . . 55 Time Decay 687 | 10 159 84 42 40 . 70 282 Lost Part 123 | . 20 10 . 3 . 10 80 Squads Dispatched 5 | . 2 . . . . . 3 Investigation 1 | . . . . . . . 1 Extermination . | . . . . . . . . Reinforcement 4 | . 2 . . . . . 2 Assault . | . . . . . . . . Garrison . | . . . . . . . . Intercept . | . . . . . . . . Searches Triggered . | . . . . . . . . Construction Impeded . | . . . . . . . . Haulers Reinforced . | . . . . . . . . Active Scanning Responses . | . . . . . . . . Cargo Convoy Interrupts . | . . . . . . . . Stealth | -11 -10 -10 -9 -9 -9 -8 -8 --------- Run | Yrd Mat Min Mat Min Exi Min Mat Distress Signals 6 | . 1 . 1 1 . . 3 Communications Jammed . | . . . . . . . . Distress Signals . | . . . . . . . . Times Spotted 85 | . 13 3 12 12 . 8 37 Peak Tracking Total 14 | . 4 3 6 7 . 3 14 Tactical Retreats 10 | . . . 2 2 . 1 5 Traps | -11 -10 -10 -9 -9 -9 -8 -8 ------- Run | Yrd Mat Min Mat Min Exi Min Mat Traps Triggered 3 | . . . 2 . . . 1 Indirectly . | . . . . . . . . Trap Hack Attempts . | . . . . . . . . Triggered . | . . . . . . . . Disarmed . | . . . . . . . . Reprogrammed . | . . . . . . . . Reused . | . . . . . . . . Traps Extracted . | . . . . . . . . Installed . | . . . . . . . . Triggered . | . . . . . . . . Machines | -11 -10 -10 -9 -9 -9 -8 -8 ---------- Run | Yrd Mat Min Mat Min Exi Min Mat Machines Disabled 4 | . 2 . . . . . 2 Max in Single Turn 1 | . 1 . . . . . 1 Machines Repaired . | . . . . . . . . Machines Dismantled 1 | . . . . . . . 1 Machines Sabotaged . | . . . . . . . . Overloaded Fab Kills . | . . . . . . . . Hacking | -11 -10 -10 -9 -9 -9 -8 -8 --------- Run | Yrd Mat Min Mat Min Exi Min Mat Machines Accessed 6 | . 1 1 2 . 1 . 1 Terminals 3 | . 1 1 1 . . . . Fabricators . | . . . . . . . . Repair Stations . | . . . . . . . . Recycling Units . | . . . . . . . . Scanalyzers 2 | . . . 1 . . . 1 Garrison Access . | . . . . . . . . Total Hacks 20 | . 5 3 5 . 1 . 6 Successful 10 | . 1 . 3 . 1 . 5 Failed 9 | . 4 3 2 . . . . Catastrophic 1 | . . 1 . . . . . Database Lockouts 1 | . . . . . . . 1 Manual 10 | . 2 3 3 . 1 . 1 Terminals 11 | . 5 3 3 . . . . Fabricators . | . . . . . . . . Repair Stations . | . . . . . . . . Recycling Units . | . . . . . . . . Scanalyzers 8 | . . . 2 . . . 6 Garrison Access . | . . . . . . . . Terminal Hacks 3 | . 1 . 1 . 1 . . Branch Access Points 2 | . 1 . 1 . . . . Proto ID Catalog 1 | . . . . . 1 . . Fabricator Hacks . | . . . . . . . . Repair Station Hacks . | . . . . . . . . Recycling Unit Hacks . | . . . . . . . . Scanalyzer 7 | . . . 2 . . . 5 Insert Component 2 | . . . . . . . 2 Analyze 2 | . . . . . . . 2 Retrieve Study 3 | . . . 2 . . . 1 Garrison Access Hacks . | . . . . . . . . Unauthorized Hacks . | . . . . . . . . Terminals . | . . . . . . . . Fabricators . | . . . . . . . . Repair Stations . | . . . . . . . . Recycling Units . | . . . . . . . . Scanalyzers . | . . . . . . . . Garrison Access . | . . . . . . . . Data Cores Recovered . | . . . . . . . . Used . | . . . . . . . . Hacking Detections 6 | . 1 1 2 . . . 2 Full Trace Events 1 | . 1 . . . . . . Feedback Events . | . . . . . . . . Feedback Blocked . | . . . . . . . . Robot Schematics Acquired . | . . . . . . . . Robots Built . | . . . . . . . . Authchips . | . . . . . . . . Time . | . . . . . . . . Total Robot Build Rating . | . . . . . . . . Part Schematics Acquired 2 | . . . . . . . 2 Parts Built . | . . . . . . . . Authchips . | . . . . . . . . Time . | . . . . . . . . Total Part Build Rating . | . . . . . . . . Part Studies Acquired 3 | . . . 2 . . . 1 Parts Repaired . | . . . . . . . . Time . | . . . . . . . . Parts Recycled . | . . . . . . . . Recycled Matter . | . . . . . . . . Retrieved Matter . | . . . . . . . . Retrieved Components . | . . . . . . . . Parts Scanalyzed 2 | . . . . . . . 2 Part Schematics Acquired 2 | . . . . . . . 2 Parts Damaged . | . . . . . . . . Bothacking | -11 -10 -10 -9 -9 -9 -8 -8 ------------ Run | Yrd Mat Min Mat Min Exi Min Mat Used RIF Installer . | . . . . . . . . Robots Hacked . | . . . . . . . . Non-combat . | . . . . . . . . Combat . | . . . . . . . . Robot Hacks Applied . | . . . . . . . . Relay Couplers Released . | . . . . . . . . Fabnet Peak Effective % . | . . . . . . . . Robots Rewired . | . . . . . . . . Allies Hacked . | . . . . . . . . Hacks Repelled . | . . . . . . . . Allies | -11 -10 -10 -9 -9 -9 -8 -8 -------- Run | Yrd Mat Min Mat Min Exi Min Mat Total Allies . | . . . . . . . . Largest Group . | . . . . . . . . Highest-Rated Group . | . . . . . . . . Highest-Rated Ally . | . . . . . . . . Total Orders . | . . . . . . . . Ally Attacks . | . . . . . . . . Total Damage . | . . . . . . . . Kills . | . . . . . . . . Allies Corrupted . | . . . . . . . . Allies Melted . | . . . . . . . . Intel | -11 -10 -10 -9 -9 -9 -8 -8 ------- Run | Yrd Mat Min Mat Min Exi Min Mat Active Infowar (turns) 2120 | 13 449 254 158 267 187 137 655 Sensors 622 | . . . . . . . 622 Seismic 1591 | 13 449 254 158 267 187 137 126 Robot Analysis Total . | . . . . . . . . Derelict Logs Recovered 1 | . . 1 . . . . . Drone Launches . | . . . . . . . . Drone Recoveries . | . . . . . . . . Exploration | -11 -10 -10 -9 -9 -9 -8 -8 ------------- Run | Yrd Mat Min Mat Min Exi Min Mat Turns Passed 2413 | 118 449 348 158 267 187 141 745 Spaces Moved 1687 | 54 232 239 120 166 229 73 574 Core 112 | 1 . . . . . . 111 Treads 249 | 53 196 . . . . . . Legs 282 | . 36 239 7 . . . . Wheels 1044 | . . . 113 166 229 73 463 Hover . | . . . . . . . . Flight . | . . . . . . . . Fastest Speed 50 | 50 120 120 80 80 80 80 50 Average Speed 99 | 157 153 120 83 80 80 99 79 Slowest Speed 160 | 160 160 120 120 80 80 110 125 Overloaded Moves . | . . . . . . . . Propulsion Burnouts . | . . . . . . . . Robots Hopped . | . . . . . . . . Potential Cave-ins 11 | . . . . 11 . . . Cave-ins Triggered 1 | . . . . 1 . . . Exploration Rate (%) 34 | 5 49 41 23 30 61 15 49 Regions Visited 7 Branch Regions 4 Pre-discovered Areas . | . . . . . . . . Known Exits Taken 2 | . 1 . 1 . . . . Unknown Exits Taken 5 | 1 . 1 . 1 1 1 . Scrap Searched 1 | . . . . 1 . . . Spaces Dug 14 | . . . . 14 . . . Terrain Destroyed 86 | 3 . . . 14 . . 69 Melee . | . . . . . . . . Projectile 14 | . . . . 14 . . . AOE 72 | 3 . . . . . . 69 Terrain Rammed . | . . . . . . . . Walls Destroyed . | . . . . . . . . Machines Disabled . | . . . . . . . . Actions | -11 -10 -10 -9 -9 -9 -8 -8 --------- Run | Yrd Mat Min Mat Min Exi Min Mat Total 2150 | 71 269 271 150 242 232 116 799 Wait 183 | . . . . 34 . 9 140 Move 1680 | 53 231 238 119 165 228 72 574 Hop . | . . . . . . . . Pick Up 22 | 5 3 1 4 2 1 1 5 Fast Attach 21 | 7 1 1 . 1 . 3 8 Attach 16 | . 1 2 2 3 1 . 7 Detach 3 | . . 1 . . . . 2 Swap 31 | . 2 3 8 3 1 3 11 Drop 20 | . 2 2 3 . 1 4 8 Fire 158 | 6 29 16 14 34 . 24 35 Melee . | . . . . . . . . Ram 5 | . . . . . . . 5 Kick 7 | . . 7 . . . . . Crush . | . . . . . . . . Escape Stasis . | . . . . . . . . Rewire . | . . . . . . . . Trap . | . . . . . . . . Miscellaneous 4 | . . . . . . . 4 Route ------- -11/Scrapyard -10/Materials (discovered 3 exits: *Mat x2 / *Min) -10/Mines -9/Materials (discovered 3 exits: *Min x2 / Sto) -9/Mines -9/Exiles -8/Mines -8/Materials History --------- Turn | Location | Event 2 | -11/Scrapyard | Met Revision 17 37 | -11/Scrapyard | Discovered new exit (range 15) 119 | -11/Scrapyard | Entered Materials 178 | -10/Materials | Identified exit to Mines 335 | -10/Materials | Build established: Mutant 399 | -10/Materials | Discovered new exit (range 5) 513 | -10/Materials | Discovered new exit (range 5) 568 | -10/Materials | Entered Mines 590 | -10/Mines | Learned Materials terminal intel 909 | -10/Mines | Discovered new exit (range 5) 916 | -10/Mines | Entered Materials 916 | -9/Materials | Evolved 2 slots: Propulsion x1, Utility x1 917 | -9/Materials | Loaded intel: 11 terminal locations 1000 | -9/Materials | Identified exit to Mines 1000 | -9/Materials | Identified exit to Storage 1074 | -9/Materials | Entered Mines 1075 | -9/Mines | Assembled infested the area 1179 | -9/Mines | Crushed by falling debris 1213 | -9/Mines | Lost 4 parts (1p1u2w) 1338 | -9/Mines | Deemed a non-threat by the Exiles lab entrance 1338 | -9/Mines | Discovered new exit (range 5) 1341 | -9/Mines | Entered Exiles 1363 | -9/Exiles | Met 8R-AWN 1376 | -9/Exiles | Met EX-HEX 1402 | -9/Exiles | Met EX-BIN 1411 | -9/Exiles | Aligned with FarCom system 1412 | -9/Exiles | Given EX-Vault access code 1430 | -9/Exiles | Opened EX-Vault 1435 | -9/Exiles | Found Latent Energy Streamer 1456 | -9/Exiles | Warned to stay clear of 0b10 Research branches 1479 | -9/Exiles | Met EX-DEC 1518 | -9/Exiles | Discovered new exit (range 14) 1528 | -9/Exiles | Left Exiles lab with Latent Energy Streamer 1528 | -9/Exiles | Entered Mines 1562 | -8/Mines | Core integrity fell below 50% 1658 | -8/Mines | Discovered new exit (range 9) 1669 | -8/Mines | Entered Materials 1669 | -8/Materials | Evolved 2 slots: Propulsion x1, Utility x1 1725 | -8/Materials | Central database locked down 2195 | -8/Materials | Lost 4 parts (1p2n1w) 2269 | -8/Materials | System corruption reached 10% 2324 | -8/Materials | Released all parts (8) 2347 | -8/Materials | Core integrity fell below 50% 2403 | -8/Materials | Core integrity fell below 20% 2414 | -8/Materials | Destroyed by G-47 Trooper with Particle Gun Last Messages --------------- 02373_ K-01 Serf cleans the Repair Station. 02378_ Dropped Sml. Storage Unit. 02383_ System corrupted: Energy discharge (-36). 02383_ Slammed into U-05 Engineer. 02383_ Destabilizing: System corrupted (+2). 02384_ Slammed into K-01 Serf. 02384_ Destabilizing: Core damaged (-5). 02388_ W-25 Informer sends out distress signal. 02393_ Critical hit (Burn: +37). 02393_ Acquired Unknown Energy Gun. 02393_ Identified Field Laser. 02396_ Acquired Unknown Device. 02396_ Identified Adv. Weight Redist. System. 02402_ Critical hit (Burn: +37). 02403_ System corrupted: Component data lost. 02409_ Slammed into G-47 Trooper. 02410_ Adv. Weight Redist. System destroyed. 02410_ System corrupted by crushing effect (+2). 02411_ Slammed into G-47 Trooper. 02412_ Critical hit (Burn: +37). Map ----- +----------------------------------------------------+ | ???????????????????????????????????????# """ # # | | ???????????????????????????????????????# ?# # | | ?????????????????????????????????????########## # | | ???????????????????????????????????? # | | ??????????????????????????????????? | | ???????????????????????????????????? | | ????????????????????????????????????###########+## | | ?????????????????????????????????????????# | | ?????????????????????????????????????????# | | ?????????????????????????????????????????# | | ?????????????????????????????????????????# | | ?????????????????????????????????????????# | | ?????????????????????????????????????????# """""? | | ?????????????????###########?????????????# """""? | | ?????????????????# #?????????????# """"?? | | ?????????????????# #?????????????????????? | | ?????????????????# #????????????########## | | ?????????????????# #????????????# ! | | ????????????????## ! #????g???????# | | ????????????????# !! #?????w??????# """ """ | | ????????????????## Y ! #????g???????# """ """ | | ?????????????????# #????b???????# """ """ | | ?????????????????#####g#####????????????# """ """ | | ???????????????????# ####### +????# """ """ | | ???????????????????# bgg #????# | | ???????############# @ +????########## | | ???????# g gggY g k #???????# | | ???????# ######### ####### #???????# "" | | ???????# Y# ! ## ##???????? #???????# """ | | ######## Y+ ## #??????????????????# S" | | # # """ ## #??????????????????# | | ] # # """ ## #??????????????????+ | | # #? """ ## #??????????????????####### | | # !#? ?# #????????????????????????? | | * " " # #?? ## #????????????????????????? | | "R" # #??####### #????????????????????????? | | """ + #??#####?# #????????????????????????? | | # #? ??# #????????????????????????? | | ######## #? """"??# #????????????????????????# | | ???#!! # """""?# #????????????????????????# | | ???#!! # """"" # #????????????????????????# | | ???#]] + #=!%#????????????????????????+ | | ???#]] # """"" # !###########??????????????# | | ???#!! # """""?# # #?????????? ???# | | ???#!! #? """"??# # #??????????=???# | | ???##### #? ??# # #?????????? ???? | | ######## #??####### # #??????????+???? | | #??# ## + !! #?????????? ???? | | #??# ## # !!! #?????????# ???? | | #??# ## # !! #?????????# #??? | +----------------------------------------------------+ Best States ------------- Heat Dissipation 45 Energy Generation 14 Energy Capacity 340 Matter Stores 300 Matter Capacity 300 Sight Range 16 Robot Scan Range 15 Terrain Scan Density 10 Additional Mass Support 9 Armor Coverage 150 Core Shielding 20 Propulsion Shielding 33 Evasion (%) 55 Recoil Reduction 2 Item Schematics ----------------- Arm. Wheel | -8/Materials | Scanalyzed Imp. Signal Interpreter | -8/Materials | Scanalyzed Robot Schematics ------------------ None Fabricated ------------ Nothing Repaired ---------- Nothing Studied --------- Arm. Wheel | -9/Materials | Hacked Mining Laser | -9/Materials | Hacked Particle Gun | -8/Materials | Hacked Alien Tech Used ----------------- None Achievements -------------- None Challenges ------------ None Game ------ Seed AuthchipShockEdition Manual? 0 Play Time 00:30:57 Cumulative 28.0 hours Start 2026.05.01 @ 13:06:26 End 2026.05.01 @ 16:47:06 Sessions 3 Manual Loads 0 Difficulty Rogue Special Mode None Game No. 34 Rogue 18 Adventurer 16 Explorer 0 Win Type - Total 0 Types 0/0/0/0/0/0/0/0/0/0 Lore% 33 Gallery% 31 Achievement% 25 Wizard Run 0 Options --------- Layout 1 ASCII 0 Keyboard 0 Movement Mouse Keybinds 0 Fullscreen 1 Font 24/Smallcaps Map View 50x35 Zoom Use 0% Tactical HUD 1 Map Filters NONE Filters NONE Steam 1 RUN: 4f1c7f02-51d7-478d-907f-60d4533c920b